bitfinex-derivatives/quotes_SOLF0:USTF0_20241103
["timestamp","ask_amount","ask_price","bid_price","bid_amount"]
[1730624538146,7.94249607,163.75,163.67,6.56819607]
[1730624538369,3.0551,163.72,163.68,3.0556]
[1730624539940,3.0551,163.72,163.69,3.0555]
[1730624540142,3.0551,163.72,163.66,6.56819607]
[1730624540336,6.2351,163.72,163.66,6.56819607]
[1730624540741,3.0553,163.71,163.67,3.0558]
[1730624541147,3.18,163.72,163.66,6.56819607]
[1730624541348,9.74819607,163.72,163.66,6.56819607]
[1730624541535,3.0552,163.71,163.67,3.0558]
[1730624541741,3.18,163.72,163.68,6.56819607]
[1730624543150,6.2351,163.72,163.69,3.0555]
[1730624546043,7.83609607,163.76,163.71,6.56819607]
[1730624546348,3.18,163.75,163.71,6.56819607]
[1730624546545,3.18,163.75,163.72,3.055]
[1730624550557,6.2345,163.75,163.72,3.055]
[1730624551148,3.18,163.75,163.72,3.055]
[1730624551861,3.18,163.75,163.74,3.0546]
[1730624552159,3.0541,163.77,163.74,3.0546]
[1730624553065,3.18,163.78,163.73,6.56819607]
[1730624553251,3.0543,163.76,163.73,9.62289607]
[1730624558062,3.0543,163.76,163.73,6.56819607]
[1730624558260,3.0543,163.76,163.73,9.62299607]
[1730624560358,3.18,163.78,163.73,6.56819607]
[1730624560765,3.0545,163.75,163.73,6.56819607]
[1730624561855,3.0545,163.75,163.72,3.0549]
[1730624564067,3.0547,163.74,163.72,3.0549]
[1730624565075,6.56819607,163.76,163.71,3.0551]
[1730624566069,3.0547,163.74,163.71,3.0551]
[1730624566872,3.0547,163.74,163.71,9.62329607]
[1730624567073,3.0547,163.74,163.72,3.055]
[1730624572475,3.0549,163.73,163.69,6.56819607]
[1730624572779,3.0549,163.73,163.68,7.83959607]
[1730624573279,3.0549,163.73,163.7,3.0553]
[1730624575585,6.56819607,163.75,163.7,3.0553]
[1730624576382,3.055,163.72,163.7,3.0553]
[1730624576583,9.74819607,163.73,163.69,3.0555]
[1730624577379,3.0551,163.72,163.69,3.0555]
[1730624577776,9.74819607,163.73,163.69,3.0555]
[1730624578282,3.0551,163.72,163.69,3.0555]
[1730624579981,9.74819607,163.73,163.69,3.0555]
[1730624580180,3.0552,163.71,163.68,3.0556]
[1730624580676,0.06160624,163.68,163.67,38.46509178]
[1730624581279,0.06160624,163.68,163.67,45.03328785]
[1730624584481,3.0545,163.75,163.67,41.97738785]
[1730624584791,3.18,163.75,163.7,6.56819607]
[1730624585582,3.18,163.75,163.73,3.0547]
[1730624585794,6.56819607,163.78,163.72,6.56819607]
[1730624585998,62.86723817,163.79,163.76,3.0541]
[1730624587086,59.81353817,163.79,163.76,3.0541]
[1730624587288,59.81353817,163.79,163.72,6.56819607]
[1730624587606,6.56819607,163.78,163.72,6.56819607]
[1730624587988,3.0543,163.76,163.73,3.0547]
[1730624592697,3.0543,163.76,163.74,3.0546]
[1730624594693,59.81353817,163.79,163.74,6.56819607]
[1730624594895,66.04733817,163.79,163.76,3.0542]
[1730624595799,3.0539,163.78,163.76,3.0542]
[1730624597686,3.0539,163.78,163.75,3.0544]
[1730624600306,62.99353817,163.79,163.75,3.0544]
[1730624600504,3.0539,163.78,163.75,3.0544]
[1730624602604,3.0543,163.76,163.73,3.0547]
[1730624604896,3.0547,163.74,163.71,3.0551]
[1730624606000,3.0547,163.74,163.72,3.055]
[1730624607702,3.0547,163.74,163.7,6.56819607]
[1730624607703,3.0547,163.74,163.71,3.0552]
[1730624609721,6.56819607,163.76,163.7,6.56819607]
[1730624609929,6.56819607,163.73,163.67,6.56819607]
[1730624610925,3.0551,163.72,163.69,3.0555]
[1730624611321,6.56819607,163.73,163.67,6.56819607]
[1730624611523,3.0553,163.71,163.67,6.56819607]
[1730624611921,6.56819607,163.73,163.67,6.56819607]
[1730624612425,3.0551,163.72,163.69,3.0555]
[1730624612631,6.56819607,163.75,163.69,6.56819607]
[1730624612935,3.16,163.75,163.69,6.56819607]
[1730624613140,3.0547,163.74,163.71,3.0552]
[1730624615833,4.3195,163.77,163.74,3.0546]
[1730624616039,7.4795,163.77,163.74,3.0546]
[1730624617237,3.0543,163.76,163.74,3.0546]
[1730624618233,3.0543,163.76,163.73,3.0548]
[1730624618939,3.0549,163.73,163.7,3.0553]
[1730624621943,10.99349607,163.77,163.71,6.56819607]
[1730624622445,3.0544,163.76,163.73,3.0548]
[1730624623437,3.0544,163.76,163.71,3.055]
[1730624623741,10.99349607,163.77,163.71,3.055]
[1730624623945,6.56819607,163.75,163.71,3.055]
[1730624624646,3.0547,163.74,163.71,3.055]
[1730624625739,6.56819607,163.75,163.7,6.56819607]
[1730624626535,3.055,163.73,163.7,9.62349607]
[1730624628942,6.56819607,163.75,163.7,6.56819607]
[1730624629139,3.0551,163.72,163.7,6.56819607]
[1730624629536,6.56819607,163.75,163.69,3.0555]
[1730624630137,3.0548,163.74,163.69,3.0555]
[1730624630335,6.56819607,163.74,163.69,3.0555]
[1730624630736,3.0552,163.72,163.69,3.0555]
[1730624636452,3.0553,163.71,163.68,9.62379607]
[1730624640350,3.0553,163.71,163.69,3.0555]
[1730624645644,9.72819607,163.74,163.68,6.56819607]
[1730624645849,3.0546,163.75,163.7,6.56819607]
[1730624646662,3.0546,163.75,163.72,3.055]
[1730624647163,6.56819607,163.76,163.7,6.56819607]
[1730624647345,7.83349607,163.77,163.7,6.56819607]
[1730624647663,3.0546,163.75,163.72,3.0549]
[1730624647958,7.83349607,163.77,163.71,6.56819607]
[1730624648859,1.2653,163.77,163.71,6.56819607]
[1730624649363,62.97700956,163.78,163.73,6.56819607]
[1730624649552,59.81700956,163.78,163.73,6.56819607]
[1730624649758,59.81700956,163.78,163.74,6.56819607]
[1730624649958,59.81700956,163.78,163.75,3.0544]
[1730624658070,3.0541,163.77,163.74,3.0546]
[1730624658274,59.81700956,163.78,163.73,6.56819607]
[1730624658459,66.38520563,163.78,163.71,6.56819607]
[1730624659168,3.0544,163.76,163.72,3.055]
[1730624659671,6.56819607,163.75,163.67,7.92439607]
[1730624659877,6.56819607,163.75,163.68,3.0556]
[1730624660060,6.56819607,163.75,163.67,6.56819607]
[1730624660564,3.055,163.73,163.69,3.0555]
[1730624662562,3.0552,163.72,163.68,3.0557]
[1730624668267,3.055,163.73,163.69,3.0554]
[1730624668465,1.3519,163.74,163.69,6.56819607]
[1730624668769,4.4067,163.74,163.7,3.0553]
[1730624671176,3.0551,163.72,163.69,9.62379607]
[1730624674572,3.055,163.73,163.69,9.62379607]
[1730624678173,3.055,163.73,163.69,9.62379607]
[1730624678372,3.055,163.72,163.69,9.62379607]
[1730624678570,59.8207523,163.77,163.71,3.0551]
[1730624678571,66.38894837,163.77,163.71,3.0551]
[1730624678769,7.95599607,163.79,163.72,6.56819607]
[1730624679070,3.0543,163.76,163.72,6.56819607]
[1730624679289,7.95599607,163.79,163.72,6.56819607]
[1730624680478,3.0544,163.76,163.72,9.62319607]
[1730624680673,6.56819607,163.77,163.72,6.56819607]
[1730624680879,3.0546,163.75,163.72,6.56819607]
[1730624682384,3.0546,163.75,163.72,3.055]
[1730624684082,3.0546,163.75,163.72,9.62319607]
[1730624684390,3.0541,163.77,163.74,9.62279607]
[1730624685992,1.3878,163.79,163.74,6.56819607]
[1730624686176,7.95599607,163.79,163.72,6.56819607]
[1730624687047,3.0541,163.77,163.73,3.0547]
[1730624687186,7.95599607,163.79,163.73,3.0547]
[1730624687485,3.0543,163.76,163.73,3.0547]
[1730624690181,6.1938,163.79,163.76,3.0542]
[1730624691285,59.812658,163.81,163.75,6.56819607]
[1730624691490,6.56819607,163.82,163.79,6.56819607]
[1730624691491,3.0532,163.82,163.79,6.56819607]
[1730624691686,3.14,163.83,163.8,6.56819607]
[1730624691883,3.053,163.83,163.8,9.62159607]
[1730624692291,3.14,163.85,163.8,6.56819607]
[1730624692592,3.0533,163.82,163.79,3.0537]
[1730624693675,9.28349607,163.87,163.8,6.56819607]
[1730624693880,9.28349607,163.87,163.82,9.62129607]
[1730624693881,3.0527,163.85,163.82,9.62129607]
[1730624697987,3.14,163.86,163.82,6.56819607]
[1730624698200,3.0528,163.84,163.82,6.56819607]
[1730624698407,3.14,163.86,163.8,6.56819607]
[1730624699300,3.0528,163.84,163.81,3.0533]
[1730624701195,3.14,163.86,163.8,9.62169607]
[1730624701196,3.0531,163.83,163.8,9.62169607]
[1730624710009,3.0533,163.82,163.8,6.56819607]
[1730624710491,3.0527,163.85,163.8,9.62149607]
[1730624710695,62.50169179,163.87,163.82,6.56819607]
[1730624710891,64.30999179,163.87,163.83,6.56819607]
[1730624711093,3.0526,163.85,163.83,6.56819607]
[1730624711803,64.30999179,163.87,163.81,6.56819607]
[1730624712305,64.30999179,163.87,163.81,9.62149607]
[1730624712890,64.30999179,163.87,163.83,6.56819607]
[1730624713103,3.0527,163.85,163.83,6.56819607]
[1730624713302,62.92639179,163.87,163.83,6.56819607]
[1730624713605,3.0525,163.86,163.85,6.56819607]
[1730624715411,62.92639179,163.87,163.85,6.56819607]
[1730624715719,62.83869179,163.87,163.85,6.56819607]
[1730624716910,59.78639179,163.87,163.85,9.62069607]
[1730624718011,62.83859179,163.87,163.85,6.56819607]
[1730624723401,59.78639179,163.87,163.83,6.56819607]
[1730624723606,3.0524,163.86,163.83,6.56819607]
[1730624725299,59.78639179,163.87,163.81,6.56819607]
[1730624725501,66.35458786,163.87,163.8,6.56819607]
[1730624726610,3.0533,163.81,163.8,6.56819607]
[1730624728115,3.0533,163.81,163.78,6.56819607]
[1730624730611,3.0533,163.81,163.78,9.62209607]
[1730624732914,3.0537,163.79,163.78,6.56819607]
[1730624733248,3.0537,163.79,163.77,6.56819607]
[1730624733415,3.14,163.83,163.77,6.56819607]
[1730624734006,3.0537,163.79,163.77,6.56819607]
[1730624734908,3.0537,163.79,163.77,9.62229607]
[1730624735316,3.14,163.83,163.77,6.56819607]
[1730624735510,3.44,163.78,163.77,6.56819607]
[1730624741319,3.44,163.78,163.77,9.62229607]
[1730624746928,3.14,163.84,163.79,3.0536]
[1730624747125,3.14,163.84,163.76,35.38862103]
[1730624747126,3.14,163.84,163.8,6.56819607]
[1730624747322,3.0527,163.85,163.82,6.56819607]
[1730624747626,3.14,163.86,163.82,6.56819607]
[1730624749335,3.0528,163.84,163.82,6.56819607]
[1730624749821,3.2928,163.84,163.82,6.56819607]
[1730624751734,4.6128,163.84,163.82,6.56819607]
[1730624761660,3.88,163.84,163.8,6.56819607]
[1730624762639,3.0532,163.82,163.8,6.56819607]
[1730624764531,0.24,163.81,163.8,6.56819607]
[1730624765945,0.7,163.81,163.8,6.56819607]
[1730624766821,0.7,163.81,163.8,9.62169607]
[1730624772651,0.46,163.81,163.8,9.62169607]
[1730624772828,2.32,163.84,163.81,3.0532]
[1730624773028,2.32,163.84,163.83,6.56819607]
[1730624773238,2.32,163.84,163.83,9.62119607]
[1730624776956,2.595,163.91,163.83,6.56819607]
[1730624777132,3.052,163.89,163.87,6.56819607]
[1730624778644,2.595,163.91,163.87,6.56819607]
[1730624778845,2.595,163.91,163.89,6.56819607]
[1730624779043,6.56819607,163.95,163.89,6.56819607]
[1730624779241,3.12,163.93,163.91,6.56819607]
[1730624779517,3.12,163.94,163.91,6.56819607]
[1730624779839,3.0513,163.92,163.91,6.56819607]
[1730624795544,2.691,163.96,163.91,6.56819607]
[1730624795848,6.56819607,164.01,163.95,6.56819607]
[1730624795849,96.52435918,163.99,163.95,6.56819607]
[1730624796436,1.32,163.98,163.95,6.56819607]
[1730624796646,3.0506,163.96,163.95,6.56819607]
[1730624797248,3.0505,163.97,163.95,6.56819607]
[1730624797555,3.0505,163.97,163.96,6.56819607]
[1730624802546,1.32,163.98,163.95,6.56819607]
[1730624803150,3.0505,163.96,163.95,6.56819607]
[1730624804650,3.0505,163.96,163.93,3.051]
[1730624804651,1.32,163.98,163.93,6.56819607]
[1730624804852,3.0508,163.95,163.93,6.56819607]
[1730624816162,3.0508,163.95,163.93,9.61929607]
[1730624817465,3.0508,163.95,163.93,6.56819607]
[1730624817767,1.32,163.98,163.93,6.56819607]
[1730624817954,1.32,163.98,163.95,6.56819607]
[1730624818686,3.0505,163.96,163.95,6.56819607]
[1730624819464,1.32,163.98,163.92,6.56819607]
[1730624819867,3.051,163.94,163.92,6.56819607]
[1730624820071,3.051,163.94,163.93,6.56819607]
[1730624820265,1.32,163.98,163.93,6.56819607]
[1730624820458,1.32,163.98,163.95,6.56819607]
[1730624821268,3.0507,163.96,163.95,6.56819607]
[1730624821456,1.32,163.98,163.95,6.56819607]
[1730624821654,1.32,163.98,163.96,6.56819607]
[1730624822963,1.32,163.98,163.94,6.56819607]
[1730624823462,96.52435918,163.99,163.94,6.56819607]
[1730624823667,3.0506,163.96,163.94,6.56819607]
[1730624825055,3.0506,163.96,163.94,9.61909607]
[1730624826566,96.52435918,163.99,163.93,6.56819607]
[1730624827163,3.0503,163.98,163.93,9.61929607]
[1730624827367,96.52435918,163.99,163.95,6.56819607]
[1730624828376,3.0507,163.96,163.95,6.56819607]
[1730624831573,3.0504,163.97,163.95,6.56819607]
[1730624831769,96.52435918,163.99,163.95,9.61889607]
[1730624831966,96.52435918,163.99,163.88,36.75258384]
[1730624831967,93.40435918,163.99,163.96,6.56819607]
[1730624832781,93.40435918,163.99,163.96,9.61869607]
[1730624832782,3.05,163.99,163.96,9.61869607]
[1730624832976,5.7223,164.0,163.96,9.61869607]
[1730624834379,3.0502,163.98,163.96,6.56819607]
[1730624839637,5.7223,164.0,163.96,6.56819607]
[1730624839893,3.0506,163.96,163.95,6.56819607]
[1730624841787,4.3706,163.96,163.95,6.56819607]
[1730624844794,1.32,163.96,163.92,6.56819607]
[1730624844997,3.0511,163.93,163.92,6.56819607]
[1730624850504,1.32,163.96,163.9,6.56819607]
[1730624851212,3.0515,163.92,163.9,6.56819607]
[1730624853113,6.56819607,164.04,163.9,6.56819607]
[1730624853322,9.66819607,164.03,163.96,6.56819607]
[1730624853506,9.66819607,164.03,163.95,6.56819607]
[1730624853507,3.1,164.02,163.95,6.56819607]
[1730624853810,6.56819607,164.01,163.93,6.56819607]
[1730624854207,3.0507,163.96,163.93,6.56819607]
[1730624857780,3.0508,163.95,163.93,6.56819607]
[1730624857906,1.2854,163.99,163.93,6.56819607]
[1730624858318,3.0503,163.98,163.93,6.56819607]
[1730624858520,3.1,163.97,163.93,6.56819607]
[1730624858819,3.0509,163.95,163.93,6.56819607]
[1730624861720,6.56819607,163.96,163.89,9.61989607]
[1730624861914,6.56819607,163.96,163.89,6.56819607]
[1730624862622,3.0514,163.92,163.89,6.56819607]
[1730624863232,6.56819607,163.96,163.88,6.56819607]
[1730624863625,3.0516,163.91,163.88,6.56819607]
[1730624867708,1.2657,163.94,163.88,6.56819607]
[1730624867709,3.0517,163.9,163.88,6.56819607]
[1730624867911,1.32,163.89,163.88,6.56819607]
[1730624868337,4.3718,163.89,163.88,6.56819607]
[1730624868516,1.32,163.89,163.88,6.56819607]
[1730624874230,1.32,163.89,163.87,3.0522]
[1730624879433,4.3719,163.89,163.87,3.0522]
[1730624881632,3.0524,163.87,163.84,3.0526]
[1730624882836,1.32,163.89,163.85,6.56819607]
[1730624883031,3.0521,163.88,163.85,9.62079607]
[1730624890436,6.56819607,163.91,163.89,3.0518]
[1730624890437,6.1515,163.91,163.89,3.0518]
[1730624890647,3.1,163.91,163.86,6.56819607]
[1730624891449,6.1516,163.91,163.88,3.0519]
[1730624892341,3.0517,163.9,163.88,3.0519]
[1730624893338,59.75364943,163.97,163.89,6.56819607]
[1730624893536,3.1,163.97,163.91,6.56819607]
[1730624893741,6.56819607,163.96,163.89,6.56819607]
[1730624894140,3.051,163.94,163.9,3.0515]
[1730624897747,4.3711,163.93,163.9,3.0515]
[1730624900353,1.32,163.93,163.89,6.56819607]
[1730624901952,1.32,163.93,163.88,6.56819607]
[1730624902755,3.0518,163.9,163.88,6.56819607]
[1730624908061,3.0513,163.92,163.89,6.56819607]
[1730624908256,1.32,163.93,163.89,6.56819607]
[1730624908677,3.0513,163.92,163.89,9.61989607]
[1730624918281,4.3711,163.93,163.91,6.56819607]
[1730624919475,4.3711,163.93,163.91,9.61969607]
[1730624919867,4.3711,163.93,163.91,6.56819607]
[1730624921774,3.0516,163.91,163.89,6.56819607]
[1730624922489,3.0516,163.91,163.89,9.61999607]
[1730624922674,3.0514,163.92,163.89,9.61999607]
[1730624925483,4.3711,163.93,163.91,6.56819607]
[1730624927692,3.0511,163.93,163.91,6.56819607]
[1730624928986,3.0513,163.93,163.9,6.56819607]
[1730624930391,3.0513,163.93,163.9,9.61979607]
[1730624941885,3.1,163.97,163.9,6.56819607]
[1730624942090,3.1,163.97,163.91,6.56819607]
[1730624942324,3.1,163.97,163.9,6.56819607]
[1730624943798,3.0518,163.89,163.88,6.56819607]
[1730624944492,3.0517,163.9,163.88,6.56819607]
[1730624952202,3.0518,163.89,163.88,6.56819607]
[1730624954902,3.052,163.88,163.87,41.93780803]
[1730624959403,3.052,163.88,163.87,35.36961196]
[1730624959604,6.56819607,163.88,163.81,6.56819607]
[1730624959817,6.56819607,163.86,163.79,6.56819607]
[1730624960108,3.0533,163.82,163.79,6.56819607]
[1730624960711,3.0533,163.82,163.79,9.62189607]
[1730624961211,3.0529,163.84,163.79,6.56819607]
[1730624961507,3.08,163.85,163.79,6.56819607]
[1730624963310,3.0532,163.82,163.79,6.56819607]
[1730624964219,9.64819607,163.85,163.78,6.56819607]
[1730624965008,3.053,163.83,163.78,6.56819607]
[1730624965200,9.64819607,163.85,163.78,6.56819607]
[1730624965810,3.0537,163.8,163.78,6.56819607]
[1730624971325,3.08,163.81,163.79,9.62179607]
[1730624972215,6.1333,163.81,163.79,6.56819607]
[1730624973021,3.08,163.81,163.79,6.56819607]
[1730624973222,3.0531,163.83,163.8,3.0535]
[1730624973532,3.0531,163.83,163.81,6.56819607]
[1730624974217,3.053,163.83,163.81,6.56819607]
[1730624975916,3.08,163.84,163.81,9.62139607]
[1730624977006,3.08,163.84,163.82,9.62129607]
[1730624978920,3.0527,163.85,163.82,9.62129607]
[1730624980021,6.56819607,163.89,163.82,6.56819607]
[1730624980316,3.08,163.88,163.86,6.56819607]
[1730624980520,3.08,163.89,163.86,6.56819607]
[1730624982438,6.1319,163.89,163.86,9.62049607]
[1730624985824,3.0519,163.89,163.86,9.62049607]
[1730624987020,3.0519,163.89,163.88,6.56819607]
[1730624988612,3.08,163.9,163.88,6.56819607]
[1730624988814,3.0518,163.9,163.88,6.56819607]
[1730624999035,3.08,163.92,163.89,6.56819607]
[1730624999237,3.08,163.92,163.91,6.56819607]
[1730625000133,3.08,163.94,163.91,6.56819607]
[1730625000349,1.2635,164.0,163.93,6.56819607]
[1730625000532,3.0509,163.95,163.93,6.56819607]
[1730625001938,3.08,163.96,163.93,6.56819607]
[1730625002248,3.0509,163.94,163.93,6.56819607]
[1730625002943,1.32,163.95,163.93,6.56819607]
[1730625003137,4.3709,163.95,163.93,6.56819607]
[1730625004350,3.0509,163.94,163.93,6.56819607]
[1730625007645,1.32,163.95,163.93,6.56819607]
[1730625008146,1.32,163.95,163.94,6.56819607]
[1730625009046,3.0495,164.02,163.98,3.0502]
[1730625009247,3.08,164.04,163.98,9.61839607]
[1730625009755,3.08,164.04,164.0,6.56819607]
[1730625010254,3.08,164.05,164.02,6.56819607]
[1730625011052,6.129,164.05,164.02,6.56819607]
[1730625011559,6.129,164.05,164.04,6.56819607]
[1730625013326,1.3313,164.07,164.04,6.56819607]
[1730625013327,3.08,164.06,164.04,6.56819607]
[1730625013684,3.08,164.06,163.94,4.4609]
[1730625013685,3.08,164.06,164.05,6.56819607]
[1730625016254,3.0486,164.07,164.05,6.56819607]
[1730625019189,54.97435712,164.08,164.05,6.56819607]
[1730625020064,58.05435712,164.08,164.05,6.56819607]
[1730625020268,3.0485,164.07,164.05,6.56819607]
[1730625027560,58.05435712,164.08,164.05,6.56819607]
[1730625028663,3.0487,164.06,164.05,6.56819607]
[1730625034565,58.05435712,164.08,164.05,6.56819607]
[1730625034774,3.0487,164.06,164.05,6.56819607]
[1730625037869,58.05435712,164.08,164.05,6.56819607]
[1730625038070,3.0487,164.06,164.05,6.56819607]
[1730625049384,6.1284,164.08,164.06,3.0487]
[1730625049588,6.1284,164.08,164.07,6.56819607]
[1730625050387,3.0484,164.08,164.07,6.56819607]
[1730625051483,7.4511,164.09,164.07,6.56819607]
[1730625051688,4.3911,164.09,164.07,6.56819607]
[1730625060191,3.0483,164.08,164.07,6.56819607]
[1730625064900,3.06,164.11,164.06,6.56819607]
[1730625065196,1.3858,164.1,164.06,6.56819607]
[1730625065600,3.0485,164.07,164.06,6.56819607]
[1730625071399,1.3858,164.1,164.04,6.56819607]
[1730625071867,3.0489,164.05,164.04,6.56819607]
[1730625073008,3.0487,164.06,164.04,6.56819607]
[1730625073209,3.0487,164.06,164.05,6.56819607]
[1730625075581,3.06,164.07,164.05,6.56819607]
[1730625075709,6.1086,164.07,164.05,6.56819607]
[1730625080303,3.06,164.07,164.05,6.56819607]
[1730625080511,3.0487,164.06,164.05,6.56819607]
[1730625081808,3.06,164.07,164.04,6.56819607]
[1730625082720,3.0489,164.05,164.04,6.56819607]
[1730625084429,3.06,164.07,164.02,6.56819607]
[1730625084718,3.0492,164.03,164.02,6.56819607]
[1730625084920,3.06,164.07,164.01,6.56819607]
[1730625084921,1.3864,164.06,164.01,6.56819607]
[1730625085118,3.049,164.05,164.01,6.56819607]
[1730625085324,1.3864,164.06,164.01,6.56819607]
[1730625086025,3.0494,164.03,164.01,6.56819607]
[1730625086417,1.3864,164.06,164.01,6.56819607]
[1730625087321,3.0494,164.03,164.01,6.56819607]
[1730625090012,3.0492,164.04,164.01,9.61779607]
[1730625090641,1.3864,164.06,164.01,6.56819607]
[1730625090817,3.0493,164.03,164.01,6.56819607]
[1730625091318,3.049,164.05,164.02,9.61759607]
[1730625091519,1.2639,164.09,164.04,6.56819607]
[1730625091720,3.06,164.07,164.04,6.56819607]
[1730625092314,3.0488,164.06,164.04,6.56819607]
[1730625097923,3.0476,164.13,164.09,3.0481]
[1730625098130,3.04,164.14,164.11,6.56819607]
[1730625098926,3.0476,164.12,164.11,6.56819607]
[1730625100233,3.04,164.14,164.11,6.56819607]
[1730625100234,3.0473,164.14,164.11,6.56819607]
[1730625100431,3.0473,164.14,164.13,6.56819607]
[1730625105728,9.60819607,164.15,164.1,6.56819607]
[1730625106428,3.0478,164.11,164.1,6.56819607]
[1730625107322,3.0475,164.13,164.1,6.56819607]
[1730625107616,3.0475,164.13,164.11,6.56819607]
[1730625114730,3.04,164.15,164.11,6.56819607]
[1730625115040,3.0476,164.12,164.11,6.56819607]
[1730625122940,3.0475,164.13,164.11,6.56819607]
[1730625123137,3.04,164.15,164.11,6.56819607]
[1730625124244,3.0476,164.12,164.11,6.56819607]
[1730625124440,3.04,164.15,164.09,6.56819607]
[1730625126437,3.0479,164.11,164.09,6.56819607]
[1730625129248,3.04,164.15,164.09,6.56819607]
[1730625130245,3.0479,164.11,164.09,6.56819607]
[1730625131442,3.0479,164.1,164.09,6.56819607]
[1730625131843,2.5672,164.14,164.08,6.56819607]
[1730625132046,3.04,164.13,164.08,6.56819607]
[1730625132636,3.0481,164.09,164.08,6.56819607]
[1730625137046,3.0486,164.07,164.06,6.56819607]
[1730625137555,3.0488,164.06,164.04,6.56819607]
[1730625137757,3.04,164.08,164.04,6.56819607]
[1730625138259,3.0485,164.07,164.04,6.56819607]
[1730625138482,3.04,164.08,164.04,6.56819607]
[1730625139249,3.0488,164.06,164.04,6.56819607]
[1730625144348,3.0485,164.07,164.04,6.56819607]
[1730625144554,3.04,164.08,164.04,6.56819607]
[1730625145155,3.0488,164.06,164.04,6.56819607]
[1730625147868,3.04,164.1,164.04,6.56819607]
[1730625148057,3.04,164.1,164.07,6.56819607]
[1730625148260,3.0483,164.09,164.07,6.56819607]
[1730625148460,3.04,164.1,164.07,6.56819607]
[1730625149267,3.04,164.11,164.07,6.56819607]
[1730625149656,3.0482,164.09,164.06,6.56819607]
[1730625150559,3.04,164.1,164.06,6.56819607]
[1730625150756,3.0484,164.08,164.06,6.56819607]
[1730625154460,3.0485,164.07,164.06,6.56819607]
[1730625155266,3.0488,164.06,164.03,9.61729607]
[1730625155455,9.60819607,164.1,164.03,6.56819607]
[1730625156614,3.049,164.05,164.03,6.56819607]
[1730625157664,3.049,164.05,164.03,9.61739607]
[1730625159564,3.0493,164.03,164.02,6.56819607]
[1730625161967,3.04,164.06,164.03,3.0491]
[1730625162159,3.04,164.06,164.03,9.61729607]
[1730625162365,3.04,164.06,164.03,6.56819607]
[1730625163397,3.049,164.05,164.03,6.56819607]
[1730625164166,3.04,164.06,164.02,3.0494]
[1730625164365,3.0491,164.04,164.02,3.0494]
[1730625166784,3.04,164.06,164.02,3.0494]
[1730625166785,3.0489,164.05,164.02,3.0494]
[1730625167879,3.04,164.06,164.04,3.0489]
[1730625168073,3.0485,164.08,164.05,6.56819607]
[1730625169268,3.0485,164.08,164.05,9.61699607]
[1730625169469,3.0486,164.07,164.05,9.61699607]
[1730625170077,7.90769607,164.14,164.05,6.56819607]
[1730625170274,62.24302841,164.13,164.07,6.56819607]
[1730625170530,6.56819607,164.12,164.07,6.56819607]
[1730625170671,7.91019607,164.12,164.07,6.56819607]
[1730625171076,3.0483,164.08,164.05,6.56819607]
[1730625171288,7.91019607,164.12,164.05,6.56819607]
[1730625171879,3.0484,164.08,164.05,6.56819607]
[1730625172990,3.0484,164.08,164.05,9.61699607]
[1730625176981,3.04,164.09,164.07,6.56819607]
[1730625177574,3.0483,164.08,164.05,6.56819607]
[1730625177974,3.04,164.09,164.05,6.56819607]
[1730625178183,3.0485,164.07,164.05,9.61699607]
[1730625183779,3.04,164.09,164.06,3.0486]
[1730625183780,3.0483,164.08,164.06,3.0486]
[1730625183979,3.0483,164.08,164.07,6.56819607]
[1730625187289,3.0481,164.1,164.07,9.61669607]
[1730625188484,3.0483,164.08,164.07,6.56819607]
[1730625195787,4.362,164.12,164.05,6.56819607]
[1730625196093,6.56819607,164.11,164.05,6.56819607]
[1730625196893,3.0486,164.07,164.05,6.56819607]
[1730625204506,3.0491,164.04,164.03,6.56819607]
[1730625204805,3.0491,164.04,164.01,41.61597039]
[1730625205406,3.0493,164.03,164.01,44.66557039]
[1730625205908,3.0494,164.02,164.01,41.61597039]
[1730625206711,3.0494,164.02,164.01,6.56819607]
[1730625207002,3.0493,164.03,164.01,6.56819607]
[1730625207809,3.0494,164.02,164.01,6.56819607]
[1730625208611,3.05,163.99,163.98,6.56819607]